bitfinex-derivatives/quotes_SOLF0:USTF0_20240924
["timestamp","ask_amount","ask_price","bid_price","bid_amount"]
[1727216912899,103.0,151.03,151.0,22.91]
[1727216913705,1.3904,151.13,151.0,22.91]
[1727216914010,3.3099,151.06,151.03,22.91]
[1727216914408,1.3904,151.13,151.03,22.91]
[1727216915012,3.3097,151.07,151.03,22.91]
[1727216915309,1.3904,151.13,151.03,22.91]
[1727216915609,3.3097,151.06,151.03,22.91]
[1727216916400,1.3904,151.13,150.98,79.03091258]
[1727216916401,1.3904,151.13,151.01,22.91]
[1727216916601,2.7601,151.16,151.04,3.31070347]
[1727216916803,3.3099,151.05,151.04,3.31070347]
[1727216917702,3.3106,151.02,150.97,1.3808]
[1727216917905,22.91,151.07,150.84,3.01454057]
[1727216918217,3.3113,150.99,150.93,22.91]
[1727216918514,22.91,151.07,150.93,26.2224]
[1727216918711,3.311,151.01,150.93,26.2224]
[1727216918906,22.91,151.07,150.93,26.2224]
[1727216919308,3.3112,151.0,150.93,26.2224]
[1727216919513,3.3112,151.0,150.93,22.91]
[1727216919914,2.6754,151.08,150.97,22.91]
[1727216921316,3.31,151.05,150.97,26.2216]
[1727216921508,2.6754,151.08,150.97,26.2216]
[1727216921911,3.3097,151.06,151.0,22.91]
[1727216922516,3.32019345,151.13,150.99,3.3111]
[1727216922517,6.6133,151.21,151.02,22.91]
[1727216922706,2.6542,151.14,151.02,22.91]
[1727216922910,25.5642,151.14,151.02,22.91]
[1727216923519,25.5642,151.14,151.0,22.91]
[1727216923713,22.91,151.12,151.0,22.91]
[1727216923916,1.3053,151.11,151.0,22.91]
[1727216924117,3.3097,151.07,151.0,26.221]
[1727216924320,1.3053,151.11,151.0,22.91]
[1727216924709,3.3096,151.07,151.0,26.221]
[1727216924913,1.3053,151.11,151.0,22.91]
[1727216925315,3.3099,151.06,151.0,22.91]
[1727216925521,1.3053,151.11,151.0,22.91]
[1727216925921,3.3099,151.06,151.0,22.91]
[1727216926219,1.3053,151.11,151.0,22.91]
[1727216926420,3.3099,151.06,151.0,22.91]
[1727216926616,1.3053,151.11,151.0,22.91]
[1727216927114,22.91,151.16,151.0,22.91]
[1727216927317,3.9576,151.13,151.03,22.91]
[1727216927724,3.9576,151.13,151.06,22.91]
[1727216928321,3.3088,151.11,151.06,22.91]
[1727216928614,3.9576,151.13,151.04,3.3101]
[1727216928815,3.309,151.1,151.04,3.3101]
[1727216929015,3.9576,151.13,151.03,22.91]
[1727216929214,26.8676,151.13,151.0,22.91]
[1727216929413,3.9576,151.13,151.04,3.3101]
[1727216929620,3.9576,151.13,151.03,22.91]
[1727216929818,22.91,151.23,151.0,22.91]
[1727216929819,22.91,151.25,151.14,106.0]
[1727216930013,22.91,151.27,151.12,22.91]
[1727216930422,22.91,151.25,151.12,22.91]
[1727216931219,22.91,151.22,151.03,3.30429959]
[1727216931422,22.91,151.22,151.09,22.91]
[1727216931921,9.89683836,151.27,151.09,22.91]
[1727216932122,3.3075,151.17,151.09,22.91]
[1727216932720,3.3076,151.16,151.09,22.91]
[1727216932918,22.91,151.23,151.08,1.3719]
[1727216933225,22.91,151.23,151.09,22.91]
[1727216933422,3.3079,151.15,151.09,22.91]
[1727216933624,22.91,151.23,151.09,22.91]
[1727216933920,22.91,151.21,151.09,22.91]
[1727216934122,22.91,151.18,151.04,24.2843]
[1727216934920,4.0034,151.17,151.04,24.2843]
[1727216935121,4.0034,151.17,151.04,1.3743]
[1727216935323,22.91,151.16,151.04,1.3743]
[1727216935720,3.3099,151.05,151.04,1.3743]
[1727216936026,4.0034,151.17,151.02,22.91]
[1727216936027,22.91,151.13,151.02,22.91]
[1727216936724,3.3099,151.06,151.02,22.91]
[1727216937026,22.91,151.13,151.01,2.6731]
[1727216937922,22.91,151.11,151.0,1.3124]
[1727216938323,3.311,151.01,150.98,101.94137937]
[1727216938528,22.91,151.08,150.96,1.4103]
[1727216938722,8.51774722,151.56,151.13,494.0]
[1727216938920,8.51774722,151.56,151.15,22.91]
[1727216938921,22.91,151.45,151.15,22.91]
[1727216939130,4.4579213,151.44,151.3,22.91]
[1727216939329,1.13827632,151.44,151.3,22.91]
[1727216940033,4.52693285,151.44,151.33,22.91]
[1727216940233,1.13827632,151.44,151.36,22.91]
[1727216941127,3.3021,151.42,151.36,22.91]
[1727216941329,1.13827632,151.44,151.36,22.91]
[1727216942037,1.13827632,151.44,151.32,1.2865]
[1727216942038,3.3021,151.41,151.32,1.2865]
[1727216942247,1.13827632,151.44,151.34,22.91]
[1727216942461,8.51774722,151.56,151.32,1.2865]
[1727216942462,8.51774722,151.56,151.41,37.13]
[1727216942630,8.51774722,151.56,151.51,37.13]
[1727216942935,3.2994,151.54,151.51,37.13]
[1727216943128,3.2994,151.54,151.41,43.76501021]
[1727216943129,8.51774722,151.56,151.41,40.46311021]
[1727216943333,8.51774722,151.56,151.54,37.13]
[1727216943530,8.51774722,151.56,151.41,40.48853854]
[1727216943531,8.51774722,151.56,151.49,37.13]
[1727216944035,3.2993,151.54,151.49,37.13]
[1727216944332,8.51774722,151.56,151.49,37.13]
[1727216945028,8.51774722,151.56,151.45,37.13]
[1727216945222,3.2997,151.52,151.45,37.13]
[1727216945423,8.51774722,151.56,151.45,37.13]
[1727216946436,8.51774722,151.56,151.41,40.48853854]
[1727216946622,8.51774722,151.56,151.42,8.17709119]
[1727216946829,8.51774722,151.56,151.45,37.13]
[1727216947430,8.51774722,151.56,151.41,3.35853854]
[1727216947631,8.51774722,151.56,151.4,37.13]
[1727216947632,8.51774722,151.56,151.45,37.13]
[1727216947938,8.51774722,151.56,151.37,16.51106672]
[1727216947939,8.51774722,151.56,151.44,3.29414872]
[1727216948131,8.51774722,151.56,151.45,37.13]
[1727216948632,3.2997,151.52,151.46,8.17846846]
[1727216948839,3.2997,151.52,151.45,37.13]
[1727216949139,3.2997,151.52,151.47,37.13]
[1727216949339,3.3,151.51,151.47,37.13]
[1727216949537,8.51774722,151.56,151.47,37.13]
[1727216949726,8.51774722,151.56,151.45,37.13]
[1727216949932,3.3006,151.48,151.45,37.13]
[1727216950128,8.51774722,151.56,151.47,37.13]
[1727216951038,3.2998,151.52,151.47,37.13]
[1727216951343,8.51774722,151.56,151.47,37.13]
[1727216952238,37.13,151.48,151.34,37.13]
[1727216952439,37.13,151.48,151.27,79.3]
[1727216952440,37.13,151.43,151.32,37.13]
[1727216952635,37.13,151.43,151.29,37.13]
[1727216952828,37.13,151.48,151.29,37.13]
[1727216952829,37.13,151.41,151.29,37.13]
[1727216954038,37.13,151.43,151.29,37.13]
[1727216954531,37.13,151.41,151.27,116.43]
[1727216955239,3.304,151.33,151.27,116.43]
[1727216955435,37.13,151.41,151.27,37.13]
[1727216955640,2.6178,151.42,151.24,37.13]
[1727216955641,37.13,151.38,151.24,37.13]
[1727216956537,37.13,151.48,151.24,37.13]
[1727216956538,8.51774722,151.56,151.36,37.13]
[1727216956734,37.13,151.53,151.39,37.13]
[1727216958037,37.13,151.5,151.37,37.13]
[1727216958434,3.3017,151.43,151.37,37.13]
[1727216958943,3.3019,151.42,151.37,37.13]
[1727216960532,3.3015,151.44,151.4,37.13]
[1727216960733,57.11,151.53,151.4,37.13]
[1727216961540,37.13,151.5,151.37,37.13]
[1727216961742,57.11,151.5,151.37,37.13]
[1727216961956,37.13,151.47,151.34,37.13]
[1727216962247,19.98,151.5,151.34,37.13]
[1727216962248,23.30936568,151.5,151.34,37.13]
[1727216962445,23.30936568,151.5,151.31,37.13]
[1727216962446,37.13,151.45,151.31,37.13]
[1727216962657,1.3878,151.44,151.31,37.13]
[1727216963044,2.8095,151.43,151.34,37.13]
[1727216963241,2.8095,151.43,151.31,37.13]
[1727216963544,3.3032,151.36,151.31,37.13]
[1727216963747,39.9395,151.43,151.31,37.13]
[1727216964248,2.8095,151.43,151.34,37.13]
[1727216964848,2.8095,151.43,151.32,37.13]
[1727216965246,3.303,151.37,151.32,37.13]
[1727216965744,2.8095,151.43,151.32,37.13]
[1727216966149,3.3032,151.36,151.32,37.13]
[1727216966453,39.9395,151.43,151.29,37.13]
[1727216966648,3.3035,151.35,151.29,37.13]
[1727216966853,39.9395,151.43,151.29,37.13]
[1727216966854,37.13,151.41,151.29,37.13]
[1727216967843,19.98,151.35,151.15,7.64762707]
[1727216968048,37.13,151.26,151.07,7.64762707]
[1727216968252,37.13,151.25,151.11,37.13]
[1727216968755,3.3068,151.2,151.11,40.4386]
[1727216969253,37.13,151.27,151.14,37.13]
[1727216969752,3.3064,151.22,151.14,37.13]
[1727216970248,37.13,151.27,151.14,37.13]
[1727216973057,57.11,151.33,151.2,37.13]
[1727216973254,2.6352,151.32,151.2,37.13]
[1727216973751,2.6352,151.32,151.22,37.13]
[1727216973948,79.36,151.42,151.27,37.13]
[1727216974146,37.13,151.37,151.25,37.13]
[1727216974347,3.3046,151.3,151.25,37.13]
[1727216974552,37.13,151.34,151.22,37.13]
[1727216974857,37.13,151.29,151.17,37.13]
[1727216975045,37.13,151.27,151.15,37.13]
[1727216975648,37.13,151.27,151.15,40.4377]
[1727216975853,3.3062,151.23,151.15,40.4377]
[1727216976758,37.13,151.27,151.15,40.4377]
[1727216977456,37.13,151.27,151.16,3.3074]
[1727216977660,27.2511685,151.3,151.12,37.13]
[1727216977855,27.2511685,151.3,151.09,3.23768864]
[1727216977856,3.3076,151.16,151.09,37.13]
[1727216978159,83.3457,151.3,151.11,37.13]
[1727216978461,37.13,151.28,151.14,37.13]
[1727216978658,37.13,151.28,151.17,37.13]
[1727216980452,3.3055,151.26,151.19,3.3068]
[1727216980650,37.13,151.28,151.17,37.13]
[1727216980959,3.306,151.24,151.17,3.3073]
[1727216981762,3.3061,151.23,151.16,3.3075]
[1727216981961,37.13,151.26,151.16,3.3075]
[1727216982358,3.306,151.23,151.16,3.3075]
[1727216984561,3.3065,151.21,151.14,37.13]
[1727216985653,3.3065,151.21,151.15,3.3077]
[1727216987567,3.3065,151.21,151.16,3.3075]
[1727216987759,3.3064,151.22,151.14,37.13]
[1727216987955,3.9857,151.3,151.17,37.13]
[1727216988568,3.9857,151.3,151.17,40.4371]
[1727216988767,3.9857,151.3,151.17,37.13]
[1727216989679,37.13,151.28,151.14,37.13]
[1727216990073,37.13,151.25,151.11,37.13]
[1727216990666,37.13,151.25,151.15,3.3076]
[1727216990667,3.3066,151.21,151.15,3.3076]
[1727216992177,3.3067,151.2,151.15,3.3076]
[1727216992671,3.3067,151.2,151.14,3.3079]
[1727216992977,3.3069,151.19,151.14,3.3079]
[1727216994073,37.13,151.25,151.13,3.3082]
[1727216994675,3.3073,151.18,151.13,3.3082]
[1727216994972,37.13,151.25,151.13,3.3082]
[1727216996774,3.3073,151.18,151.13,3.3082]
[1727216997074,37.13,151.25,151.11,37.13]
[1727216997378,3.3063,151.22,151.16,3.3074]
[1727216997573,41.1157,151.3,151.16,37.13]
[1727216997971,37.13,151.28,151.16,37.13]
[1727216998375,37.13,151.28,151.15,3.29208575]
[1727216998575,3.3064,151.22,151.16,3.3073]
[1727216998775,3.3064,151.22,151.14,37.13]
[1727216999077,3.3064,151.22,151.16,3.3073]
[1727217000473,3.3064,151.22,151.14,37.13]
[1727217000673,3.3065,151.21,151.14,37.13]
[1727217000978,3.3065,151.21,151.16,3.3073]
[1727217001366,3.3058,151.24,151.14,40.40984383]
[1727217001570,37.13,151.28,151.18,3.3071]
[1727217001973,3.3063,151.22,151.18,3.3071]
[1727217002274,3.3063,151.22,151.14,40.40984383]
[1727217002275,3.3063,151.22,151.17,3.3072]
[1727217002783,3.3063,151.22,151.14,22.87]
[1727217003375,3.3065,151.21,151.17,3.3072]
[1727217003578,3.3065,151.21,151.14,26.14157226]
[1727217003879,22.87,151.29,151.16,22.87]
[1727217004482,3.9857,151.3,151.22,22.87]
[1727217004874,22.87,151.29,151.19,3.3067]
[1727217005069,22.87,151.27,151.15,4.1178]
[1727217005475,3.3064,151.22,151.17,3.3072]
[1727217005683,3.3064,151.22,151.16,3.31513755]
[1727217005877,3.3064,151.22,151.18,3.3069]
[1727217006077,22.87,151.29,151.16,22.87]
[1727217006278,22.87,151.29,151.17,3.28602838]
[1727217006475,3.3059,151.24,151.2,3.3065]
[1727217006775,22.87,151.29,151.17,3.28602838]
[1727217007374,22.87,151.27,151.15,4.1178]
[1727217007573,22.87,151.27,151.16,3.3075]
[1727217007773,22.87,151.27,151.15,4.1178]
[1727217008281,3.3063,151.22,151.17,3.3073]
[1727217008680,22.87,151.27,151.17,3.3073]
[1727217008681,3.3065,151.21,151.17,3.3073]
[1727217008878,3.3065,151.21,151.16,3.3075]
[1727217009079,22.87,151.27,151.16,3.3075]
[1727217009383,3.3065,151.21,151.16,3.3075]
[1727217009578,3.3065,151.21,151.17,3.3073]
[1727217009783,22.87,151.27,151.14,3.31535691]
[1727217009988,22.87,151.24,151.12,22.87]
[1727217010176,22.87,151.22,151.13,3.37887203]
[1727217010483,19.98,151.27,151.13,3.37887203]
[1727217010484,22.87,151.19,151.13,3.37887203]
[1727217010782,22.87,151.17,151.08,1.3567]
[1727217010982,22.87,151.19,151.04,25.5824]
[1727217011178,22.87,151.19,151.06,3.3097]
[1727217011179,3.3088,151.11,151.06,3.3097]
[1727217011378,3.3088,151.11,151.04,2.7124]
[1727217011984,3.3089,151.1,151.05,3.3098]
[1727217012285,22.87,151.12,150.95,79.4]
[1727217012477,42.85,151.19,150.97,7.32830272]
[1727217012478,22.87,151.13,150.97,7.32830272]
[1727217012785,22.87,151.08,150.97,4.0156]
[1727217012981,3.3097,151.06,150.97,7.35974509]
[1727217013186,22.87,151.05,150.84,570.6291]
[1727217013487,22.87,151.05,150.92,22.87]
[1727217013488,3.3108,151.02,150.92,22.87]
[1727217013780,22.87,151.05,150.92,22.87]
[1727217014685,3.3112,151.0,150.93,3.3126]
[1727217015475,3.3113,150.99,150.93,3.3126]
[1727217015879,22.87,151.07,150.95,22.87]
[1727217016082,22.87,151.1,150.97,22.87]
[1727217016274,37.2,151.1,150.98,37.2]
[1727217016685,37.2,151.08,150.97,3.3116]
[1727217017886,37.2,151.08,150.95,37.2]
[1727217018292,3.3108,151.02,150.95,3.3121]
[1727217018781,3.3108,151.01,150.95,3.3121]
[1727217018985,37.2,151.06,150.93,37.2]
[1727217019386,2.5897,151.11,150.95,37.2]
[1727217019387,37.2,151.08,150.95,37.2]
[1727217019879,3.3114,150.99,150.93,37.2]
[1727217020085,3.3114,150.99,150.91,3.35000993]
[1727217020287,3.3114,150.99,150.9,37.2]
[1727217020678,3.3114,150.99,150.93,3.3125]
[1727217020888,3.3114,150.99,150.9,37.2]
[1727217021291,2.7926,151.02,150.92,3.3127]
[1727217021292,3.3115,150.98,150.92,3.3127]
[1727217021586,2.7926,151.02,150.9,37.2]
[1727217021587,4.2017,151.02,150.9,37.2]
[1727217021889,3.3119,150.97,150.9,40.5132]
[1727217022593,3.3119,150.97,150.91,3.313]
[1727217023685,3.312,150.96,150.91,3.313]
[1727217023987,37.2,151.0,150.87,37.2]
[1727217024390,3.312,150.96,150.87,37.2]
[1727217024586,37.2,151.0,150.87,37.2]
[1727217025487,3.3123,150.95,150.89,3.3133]
[1727217025986,37.2,150.98,150.89,3.3133]
[1727217026492,37.2,150.98,150.88,3.3136]
[1727217026889,3.3126,150.93,150.86,2.7007]
[1727217027086,37.2,150.98,150.85,38.5082]
[1727217027288,37.2,150.98,150.87,37.2]
[1727217027484,3.3118,150.97,150.87,37.2]
[1727217027790,37.2,151.0,150.9,3.3131]
[1727217028692,3.3119,150.96,150.9,3.3131]
[1727217028994,3.3119,150.96,150.87,37.2]
[1727217029193,3.3119,150.96,150.85,1.3082]
[1727217029393,37.2,151.0,150.87,37.2]
[1727217029694,4.2017,151.02,150.89,37.2]
[1727217029894,3.3111,151.0,150.94,3.3122]
[1727217030398,3.3112,151.0,150.94,3.3122]
[1727217030700,4.2017,151.02,150.9,3.28240291]
[1727217031193,4.2017,151.02,150.89,37.2]
[1727217031399,4.2017,151.02,150.95,3.312]
[1727217031594,4.2017,151.02,150.92,37.2]
[1727217031785,4.2017,151.02,150.94,37.2]
[1727217031991,4.2017,151.02,150.97,3.3115]
[1727217032191,4.2017,151.02,150.94,37.2]
[1727217032591,4.2017,151.02,150.94,40.58514371]
[1727217032787,4.2017,151.02,150.9,2.6108]
[1727217032788,4.2017,151.02,150.92,37.2]
[1727217033588,7.5124,151.02,150.96,3.3118]
[1727217034294,4.2017,151.02,150.94,37.2]
[1727217034994,102.86260022,151.12,150.97,37.2]
[1727217034995,37.2,151.07,150.97,37.2]
[1727217035200,37.2,151.1,150.97,37.2]
[1727217035400,3.3096,151.07,151.01,3.3107]
[1727217036793,3.964,151.11,151.0,37.2]
[1727217036992,3.964,151.11,151.02,37.2]
[1727217037191,3.309,151.1,151.04,3.31]
[1727217037700,3.964,151.11,151.02,37.2]
[1727217037894,7.2727,151.11,151.02,37.2]
[1727217038091,37.2,151.18,151.04,37.2]
[1727217038295,3.3082,151.13,151.07,3.3094]
[1727217038498,3.9295,151.17,151.05,22.9]
[1727217038900,22.9,151.16,151.03,22.9]
[1727217039101,3.9295,151.17,151.03,22.9]
[1727217039305,3.9295,151.17,151.05,22.9]
[1727217040101,3.9295,151.17,151.06,3.3095]
[1727217040298,3.9295,151.17,151.02,1.3071]
[1727217040299,22.9,151.14,151.02,1.3071]
[1727217040499,22.9,151.12,150.99,1.2999]
[1727217040807,22.9,151.08,150.95,22.9]
[1727217040997,1.3969,151.07,150.95,22.9]
[1727217041203,2.7161,151.07,150.95,22.9]
[1727217041506,22.9,151.06,150.93,1.3819]
[1727217041702,24.2434,151.06,150.93,1.3819]
[1727217041896,24.2434,151.06,150.96,3.3118]
[1727217042596,3.3108,151.02,150.96,3.3118]
[1727217042798,22.9,151.03,150.84,338.0]
[1727217043003,1.3434,151.06,150.85,3.9491]
[1727217043197,22.9,151.0,150.92,3.3126]
[1727217043400,22.9,151.03,150.9,26.21047051]
[1727217044394,22.9,151.01,150.9,26.21047051]
[1727217044593,3.3115,150.98,150.9,22.9]
[1727217044805,22.9,151.01,150.9,22.9]
[1727217045203,3.3116,150.98,150.91,3.3129]
[1727217045596,22.9,151.01,150.9,26.2074884]
[1727217045796,22.9,151.03,150.92,3.3127]
[1727217046104,22.9,151.03,150.9,26.2074884]
[1727217046300,22.9,151.01,150.9,26.2074884]
[1727217046512,3.3116,150.98,150.91,3.313]
[1727217047008,3.3117,150.97,150.91,3.313]
[1727217047306,22.9,151.01,150.92,3.3127]
[1727217047702,3.3116,150.98,150.92,3.3127]
[1727217048000,3.3116,150.98,150.91,3.3129]
[1727217048200,3.3118,150.97,150.91,3.3129]
[1727217048601,22.9,151.01,150.9,3.3132]
[1727217049006,22.9,151.01,150.87,22.9]
[1727217049007,3.3122,150.95,150.87,22.9]
[1727217049199,22.9,150.98,150.85,26.8491]
[1727217049406,3.3125,150.94,150.85,26.8491]
[1727217049602,3.3125,150.94,150.88,3.3135]
[1727217049807,3.3125,150.94,150.86,3.34371597]
[1727217050003,3.3125,150.94,150.85,26.8491]
[1727217050197,3.3122,150.95,150.85,30.17790198]
[1727217050405,4.1794,150.97,150.85,30.17790198]
[1727217050597,3.3125,150.94,150.89,3.3133]
[1727217050803,4.1794,150.97,150.87,22.9]
[1727217051311,3.3121,150.96,150.87,22.9]
[1727217051510,4.1794,150.97,150.87,22.9]
[1727217051911,3.3123,150.95,150.9,3.3131]
[1727217052115,4.1794,150.97,150.87,22.9]
[1727217052510,3.3124,150.94,150.9,3.3131]
[1727217052912,4.1794,150.97,150.85,7.27790198]
[1727217053112,4.1794,150.97,150.88,3.3136]
[1727217053113,3.313,150.92,150.88,3.3136]
[1727217053311,6.6208,151.04,150.88,3.3136]
[1727217053515,22.9,150.99,150.86,22.9]
[1727217053815,22.9,150.99,150.86,26.1641697]
[1727217054207,22.9,150.99,150.88,22.9]
[1727217054407,3.3115,150.98,150.88,22.9]
[1727217054605,22.9,151.02,150.91,22.9]
[1727217055314,3.31786542,151.04,150.91,22.9]
[1727217055509,22.9,151.01,150.91,22.9]
[1727217055912,3.3117,150.98,150.92,3.3127]
[1727217056917,3.3118,150.97,150.92,3.3127]
[1727217057715,3.3116,150.98,150.92,3.3127]
[1727217057915,22.9,151.04,150.93,22.9]
[1727217058122,22.9,151.07,150.93,22.9]
[1727217058421,79.52,151.08,150.96,22.9]
[1727217058618,2.7582,151.07,150.96,22.9]
[1727217059920,3.3105,151.03,150.96,22.9]
[1727217060116,2.7582,151.07,150.96,22.9]
[1727217060522,3.3106,151.03,150.97,3.3115]
[1727217060819,2.7582,151.07,150.96,26.28247266]
[1727217061021,2.7582,151.07,150.96,22.9]
[1727217061323,3.3105,151.03,150.97,3.3116]
[1727217061621,22.9,151.05,150.93,22.9]
[1727217061827,2.7582,151.07,150.94,3.9118]
[1727217062127,2.7582,151.07,150.98,3.3113]
[1727217063326,3.3105,151.03,150.98,3.3113]
[1727217063528,2.7582,151.07,150.97,3.3117]
[1727217064022,3.3105,151.03,150.98,3.3114]
[1727217064327,2.7582,151.07,150.96,22.9]
[1727217064620,2.7582,151.07,150.97,3.3116]
[1727217065021,3.3106,151.03,150.97,3.3116]
[1727217065220,2.7582,151.07,150.97,3.3116]
[1727217065619,3.3107,151.02,150.97,3.3116]
[1727217066123,3.3107,151.02,150.96,3.3118]
[1727217067419,3.3108,151.01,150.96,3.3118]
[1727217067618,3.3108,151.01,150.94,3.9118]
[1727217067619,22.9,151.03,150.94,3.9118]
[1727217067917,22.9,151.03,150.91,22.9]
[1727217068519,3.3114,150.99,150.91,22.9]
[1727217068721,25.6582,151.07,150.91,22.9]
[1727217068928,25.6582,151.07,150.96,22.9]
[1727217069123,3.3106,151.03,150.97,3.3116]
[1727217069426,25.6582,151.07,150.97,3.3116]
[1727217070221,3.3106,151.02,150.97,3.3116]
[1727217074234,3.3108,151.01,150.97,3.3116]
[1727217074927,14.31,151.01,150.92,14.31]
[1727217075132,2.7582,151.07,150.9,14.31]
[1727217075133,14.31,150.98,150.9,14.31]
[1727217075525,14.31,151.0,150.92,14.31]
[1727217075726,2.7582,151.07,150.94,14.31]
[1727217075925,14.31,151.05,150.96,14.31]
[1727217076532,22.9,151.06,150.94,22.9]
[1727217076733,3.311,151.01,150.96,3.3118]
[1727217077132,22.9,151.01,150.89,4.0209]
[1727217077430,1.3917,151.0,150.89,4.0209]
[1727217077626,3.3123,150.95,150.91,3.313]
[1727217077931,25.5526,150.99,150.89,4.0209]
[1727217078326,3.3121,150.96,150.89,4.0209]
[1727217078730,2.6526,150.99,150.89,4.0209]
[1727217078939,3.3123,150.95,150.91,3.313]
[1727217080225,2.6526,150.99,150.89,4.0209]
[1727217080836,3.3121,150.96,150.92,3.3127]
[1727217081235,2.6526,150.99,150.89,4.0209]
[1727217081433,3.3119,150.96,150.91,3.3129]
[1727217081628,2.6526,150.99,150.89,4.0209]
[1727217081834,2.6526,150.99,150.9,22.9]
[1727217082043,2.6526,150.99,150.93,3.3124]
[1727217082243,2.6526,150.99,150.9,22.9]
[1727217082447,3.3116,150.98,150.93,3.3124]
[1727217082639,3.3116,150.98,150.9,22.9]
[1727217082842,1.3917,151.0,150.9,22.9]
[1727217083051,1.3917,151.0,150.89,4.0209]
[1727217083245,1.3917,151.0,150.9,22.9]
[1727217083545,3.3122,150.95,150.91,3.3129]
[1727217084239,3.3122,150.95,150.9,22.9]
[1727217084240,3.3122,150.95,150.9,26.2131]
[1727217084630,3.3124,150.94,150.9,26.2131]
[1727217084836,1.3917,151.0,150.89,4.0209]
[1727217085142,22.9,150.99,150.89,4.0209]
[1727217085640,22.9,150.99,150.89,3.3133]
[1727217086335,3.3123,150.95,150.9,3.3132]
[1727217088339,3.3124,150.94,150.89,3.3134]
[1727217088635,22.9,150.99,150.89,3.3134]
[1727217089034,3.3119,150.96,150.89,3.3134]
[1727217089235,22.9,150.99,150.89,3.3134]
[1727217089534,22.9,150.99,150.86,3.23876441]
[1727217089840,22.9,150.99,150.85,22.9]
[1727217089841,22.9,150.96,150.85,22.9]
[1727217090345,3.3129,150.92,150.87,3.3138]
[1727217091240,22.9,150.96,150.85,29.57759774]
[1727217091450,22.9,150.94,150.83,22.9]
[1727217091637,22.9,150.92,150.8,30.29139511]
[1727217091836,1.3626,150.91,150.8,30.29139511]
[1727217092033,22.9,150.9,150.8,3.33189511]
[1727217092244,22.9,150.88,150.75,27.0088]
[1727217092852,22.9,150.85,150.75,2.7119]
[1727217093046,22.9,150.85,150.73,22.9]
[1727217093243,3.3156,150.8,150.74,3.3166]
[1727217093643,22.9,150.85,150.73,22.9]
[1727217093841,3.3153,150.81,150.75,3.3163]
[1727217094046,25.5293,150.87,150.75,22.9]
[1727217094246,2.6293,150.87,150.78,22.9]
[1727217094448,6.622,151.01,150.83,22.9]
[1727217094752,25.6428,150.97,150.83,22.9]
[1727217094940,29.04249473,150.97,150.83,22.9]
[1727217095348,25.6428,150.97,150.83,24.2169]
[1727217096244,3.3123,150.95,150.88,3.3135]
[1727217096444,25.6428,150.97,150.83,24.2169]
[1727217096646,25.6428,150.97,150.86,22.9]
[1727217097049,2.7428,150.97,150.88,22.9]
[1727217098752,3.3121,150.96,150.9,3.3132]